Cogmind - Beta 14 @@@ ROGUE MODE // 2024.11.30 @ 00:15:15 Player: Tenderz Result: Destroyed by DAS Turret with DAS Cannon Performance ------------- Evolutions (0) 0 Regions Visited (3) 600 Robots Destroyed (23) 115 Value Destroyed (470) 470 Prototype IDs (25) 500 Alien Tech Used (0) 0 Bonus (300) 300 TOTAL SCORE: 1985 Bonus ------- Aligned with FarCom 300 Cogmind --------- Core Integrity 0/250 Matter 182/300 Energy 250/250 System Corruption 9% Temperature Cool (0) Movement Treading (240) Ox1 Location -10/Exiles Parts ------- > --- POWER (1) -------- Ion Engine > --- PROPULSION (2) --- Light Treads > --- UTILITY (2) ------ Large Storage Unit Modified TNC > --- WEAPON (2) ------- Improved Light Cannon Improved Light Cannon > --- INVENTORY (15) --- Wheel Cooling System High-capacity Matter Pod (200) Signal Interpreter Seismic Detector Medium Armor Plating Medium Armor Plating Medium Armor Plating Medium Armor Plating Assault Rifle Improved Light Cannon Mining Laser Peak State ------------ > --- POWER ------------ Ion Engine > --- PROPULSION ------- Light Treads > --- UTILITY ---------- Large Storage Unit Modified TNC > --- WEAPON ----------- Improved Light Cannon Improved Light Cannon > --- INVENTORY -------- Wheel Cooling System High-capacity Matter Pod Signal Interpreter Seismic Detector Medium Armor Plating Medium Armor Plating Medium Armor Plating Medium Armor Plating Assault Rifle Improved Light Cannon Mining Laser [Rating: 14] Favorites ----------- Power Ion Engine Engine Ion Engine Propulsion Wheel Treads Light Treads Wheel Wheel Utility Large Storage Unit Device Seismic Detector Storage Large Storage Unit Processor Modified TNC Protection Medium Armor Plating Weapon Improved Light Cannon Energy Gun Medium Laser Ballistic Gun Assault Rifle Ballistic Cannon Improved Light Cannon Special Weapon Mining Laser Build | -11 -10 -10 -10 ------- Run | Yrd Mat Min Exi Slots Evolved . | . . . . Power . | . . . . Propulsion . | . . . . Utility . | . . . . Weapon . | . . . . Parts Attached 31 | 9 9 12 1 Power 2 | . 1 1 . Engine 2 | . 1 1 . Core . | . . . . Reactor . | . . . . Propulsion 11 | 4 1 6 . Treads 4 | 1 . 3 . Leg . | . . . . Wheel 7 | 3 1 3 . Hover . | . . . . Flight . | . . . . Utility 10 | 2 3 4 1 Device 4 | 1 1 2 . Storage 3 | 1 1 1 . Processor 1 | . . . 1 Hackware . | . . . . Protection 2 | . 1 1 . Artifact . | . . . . Weapon 8 | 3 4 1 . Energy Gun 3 | 2 1 . . Energy Cannon . | . . . . Ballistic Gun 1 | . 1 . . Ballistic Cannon 3 | . 2 1 . Launcher . | . . . . Special Weapon 1 | 1 . . . Impact Weapon . | . . . . Slashing Weapon . | . . . . Piercing Weapon . | . . . . Special Melee Weapon . | . . . . Unidentified Prototypes . | . . . . Parts Lost 6 | . . 6 . Power 1 | . . 1 . Propulsion 4 | . . 4 . Utility . | . . . . Weapon 1 | . . 1 . Highest Loss Streak 6 | . . 6 . To Critical Strikes . | . . . . Average Slot Usage (%) 94 | . 99 96 84 Engine 13 | . 13 13 14 Treads 4 | . . 3 14 Wheel 18 | . 28 21 . Device 10 | . 9 12 9 Storage 14 | . 14 14 14 Processor 1 | . . . 4 Protection 2 | . 4 1 . Energy Gun 1 | . 3 . . Ballistic Cannon 25 | . 22 27 28 Peak Build Rating 14 | 6 12 12 14 Average Rating 10 | 4 10 10 10 On Entrance 6 | . 6 11 9 Naked Turns . | . . . . Heaviest Build 40 | 9 40 40 34 Greatest Support 26 | 26 20 20 20 Greatest Overweight (x) 1 | . 1 1 1 Average Overweight (x) . | . . 1 1 Largest Inventory Capacity 15 | 8 15 15 15 Average Capacity 14 | 7 14 15 15 Most Carried 15 | 8 15 15 12 Average Carried 12 | 5 13 14 11 Final Capacity 15 | 8 15 15 15 Final Carried 15 | 8 15 11 12 Class Distribution -------------------- 92% | Mutant 7% | Scavenger-Mutant Dominant Class ---------------- Mutant | -10/Materials Mutant | -10/Mines Mutant | -10/Exiles Resources | -11 -10 -10 -10 ----------- Run | Yrd Mat Min Exi Matter Collected 1002 | 290 395 317 . Remotely . | . . . . Salvage Created 534 | 157 345 32 . Parts 38 | 7 25 6 . Haulers Intercepted 1 | . 1 . . Recyclers Shooed 3 | 1 1 1 . Parts Field Recycled . | . . . . Retrieved Matter . | . . . . Parts Self-Destructed . | . . . . Prevented . | . . . . Kills | -11 -10 -10 -10 ------- Run | Yrd Mat Min Exi Combat Hostiles Destroyed 13 | . 6 7 . Cannons 13 | . 6 7 . Classes Destroyed 8 | 2 4 2 . Builder 1 | . 1 . . Tunneler 5 | 4 1 . . Hauler 1 | . 1 . . Recycler 2 | 1 1 . . Watcher 1 | . 1 . . Swarmer 6 | . . 6 . Grunt 6 | . 6 . . Demolisher 1 | . . 1 . Best Kill Streak 4 | 3 4 3 . Combat Bots Only 3 | . 2 3 . Max Kills in Single Turn 1 | 1 1 1 . Gunslinging . | . . . . Exploded . | . . . . Melee . | . . . . Uniques/NPCs Destroyed . | . . . . Combat | -11 -10 -10 -10 -------- Run | Yrd Mat Min Exi Hostile Shots Fired 64 | . 14 47 3 Missed 14 | . 3 11 . Damage Taken 1050 | . 207 699 144 Core 286 | . 39 187 60 Absorbed by Shields . | . . . . Core Remaining (%) 100 | 100 . . . Volleys Fired 61 | 11 33 17 . Largest 2 | 2 2 2 . Hottest 150 | 150 78 78 . Shots Fired 104 | 13 57 33 1 Gun 17 | 11 6 . . Cannon 85 | . 51 33 1 Launcher . | . . . . Special 2 | 2 . . . Kinetic 88 | . 54 33 1 Thermal 16 | 13 3 . . Explosive . | . . . . Electromagnetic . | . . . . Robot Hit Streak 9 | 4 9 3 . Robot Miss Streak 3 | 1 2 3 . Penetration Max . | . . . . Secondary Targets . | . . . . Shots Hit Robots 55 | 9 28 18 . Core Hits 26 | 6 12 8 . Critical Kills . | . . . . Critical Parts Destroyed . | . . . . Critical Strikes 3 | . 1 2 . Blast 3 | . 1 2 . Melee Attacks . | . . . . Impact . | . . . . Slashing . | . . . . Piercing . | . . . . Sneak Attacks . | . . . . Combat Hostiles . | . . . . Follow-up Attacks . | . . . . Damage Inflicted 1108 | 122 592 394 . Guns 135 | 98 37 . . Cannons 925 | . 531 394 . Explosions . | . . . . Melee . | . . . . Ramming 24 | . 24 . . Kinetic 950 | . 556 394 . Thermal 134 | 122 12 . . Explosive . | . . . . Electromagnetic . | . . . . Impact . | . . . . Slashing . | . . . . Piercing . | . . . . Highest Corruption 9 | . 2 9 9 Average Corruption 4 | . 2 3 9 Corruption Purged . | . . . . Corruption Blocked . | . . . . Effects 31 | . 8 6 17 Message Errors 8 | . . 2 6 Matter Fused 7 | . 2 2 3 Heat Flow Errors 4 | . 2 . 2 Energy Discharges 1 | . . . 1 Data Loss (minor) 5 | . 2 . 3 Data Loss (major) 2 | . . 1 1 Misfires 4 | . 2 1 1 Overload Shots . | . . . . Overflow Damage 4 | . . 4 . Projectiles 4 | . . 4 . Explosions . | . . . . Melee . | . . . . Knockbacks 13 | . 8 5 . Impact . | . . . . Kinetic 12 | . 7 5 . Secondary 1 | . 1 . . Self-Inflicted Damage 12 | . 12 . . Shots . | . . . . Rammed 1 | . 1 . . Targets Rammed 1 | . 1 . . Kicked . | . . . . Crushed . | . . . . Highest Temperature 257 | 25 218 216 257 Average Temperature 52 | 16 36 70 111 Received Heat Transfer 75 | . 75 . . Siege Activations . | . . . . Robots Corrupted . | . . . . Combat Hostiles . | . . . . Parts Fried . | . . . . Impact Corruptions . | . . . . Robots Melted . | . . . . Combat Hostiles . | . . . . Parts Melted 4 | 4 . . . Heat Transferred 383 | 346 37 . . Parts Sabotaged . | . . . . Parts Stolen . | . . . . Parts Stripped . | . . . . Power Chain Reactions . | . . . . Alert | -11 -10 -10 -10 ------- Run | Yrd Mat Min Exi Peak Influence 303 | 25 303 230 . Initial 59 | . 16 59 . Average 105 | 11 87 175 . Maximum Alert Level 1 | . 1 1 . Low Security (%) 82 | 100 95 49 . Level 1 17 | . 4 50 . Level 2 . | . . . . Level 3 . | . . . . Level 4 . | . . . . Level 5 . | . . . . High Security . | . . . . Max Security . | . . . . Squads Dispatched 3 | . 3 . . Investigation 2 | . 2 . . Extermination . | . . . . Reinforcement 1 | . 1 . . Assault . | . . . . Garrison . | . . . . Intercept . | . . . . Searches Triggered . | . . . . Construction Impeded . | . . . . Haulers Reinforced . | . . . . Active Scanning Responses . | . . . . Cargo Convoy Interrupts . | . . . . Stealth | -11 -10 -10 -10 --------- Run | Yrd Mat Min Exi Distress Signals . | . . . . Communications Jammed . | . . . . Distress Signals . | . . . . Times Spotted 23 | . 13 10 . Peak Tracking Total 11 | . 4 3 11 Tactical Retreats 3 | . 2 1 . Traps | -11 -10 -10 -10 ------- Run | Yrd Mat Min Exi Traps Triggered 3 | . 3 . . Indirectly . | . . . . Trap Hack Attempts . | . . . . Triggered . | . . . . Disarmed . | . . . . Reprogrammed . | . . . . Reused . | . . . . Traps Extracted . | . . . . Installed . | . . . . Triggered . | . . . . Machines | -11 -10 -10 -10 ---------- Run | Yrd Mat Min Exi Machines Disabled 8 | . 7 . 1 Max in Single Turn 3 | . 3 . 1 Machines Repaired . | . . . . Machines Dismantled . | . . . . Machines Sabotaged . | . . . . Overloaded Fab Kills . | . . . . Hacking | -11 -10 -10 -10 --------- Run | Yrd Mat Min Exi Machines Accessed 10 | . 5 . 5 Terminals 5 | . 5 . . Fabricators . | . . . . Repair Stations . | . . . . Recycling Units . | . . . . Scanalyzers . | . . . . Garrison Access . | . . . . Total Hacks 59 | . 23 . 36 Successful 46 | . 10 . 36 Failed 12 | . 12 . . Catastrophic 1 | . 1 . . Database Lockouts 1 | . 1 . . Manual 15 | . 14 . 1 Terminals 23 | . 23 . . Fabricators . | . . . . Repair Stations . | . . . . Recycling Units . | . . . . Scanalyzers . | . . . . Garrison Access . | . . . . Terminal Hacks 42 | . 6 . 36 Record 35 | . . . 35 Part Schematic 1 | . 1 . . Robot Analysis 1 | . 1 . . Prototype ID Bank 1 | . 1 . . Alert Level 1 | . 1 . . Maintenance Status 1 | . 1 . . Zone Layout 1 | . 1 . . Derelict Proto ID Bank 1 | . . . 1 Fabricator Hacks . | . . . . Repair Station Hacks . | . . . . Recycling Unit Hacks . | . . . . Scanalyzer . | . . . . Garrison Access Hacks . | . . . . Unauthorized Hacks 4 | . 4 . . Terminals 4 | . 4 . . Track 1 | . 1 . . Botnet 3 | . 3 . . Fabricators . | . . . . Repair Stations . | . . . . Recycling Units . | . . . . Scanalyzers . | . . . . Garrison Access . | . . . . Data Cores Recovered . | . . . . Used . | . . . . Hacking Detections 5 | . 5 . . Full Trace Events 1 | . 1 . . Feedback Events . | . . . . Feedback Blocked . | . . . . Robot Schematics Acquired . | . . . . Robots Built . | . . . . Authchips . | . . . . Time . | . . . . Total Robot Build Rating . | . . . . Part Schematics Acquired 1 | . 1 . . Parts Built . | . . . . Authchips . | . . . . Time . | . . . . Total Part Build Rating . | . . . . Parts Repaired . | . . . . Time . | . . . . Parts Recycled . | . . . . Recycled Matter . | . . . . Retrieved Matter . | . . . . Retrieved Components . | . . . . Parts Scanalyzed . | . . . . Part Schematics Acquired . | . . . . Parts Damaged . | . . . . Bothacking | -11 -10 -10 -10 ------------ Run | Yrd Mat Min Exi Used RIF Installer . | . . . . Robots Hacked . | . . . . Non-combat . | . . . . Combat . | . . . . Robot Hacks Applied . | . . . . Relay Couplers Released . | . . . . Fabnet Peak Effective % . | . . . . Robots Rewired . | . . . . Allies Hacked . | . . . . Hacks Repelled . | . . . . Allies | -11 -10 -10 -10 -------- Run | Yrd Mat Min Exi Total Allies . | . . . . Largest Group . | . . . . Highest-Rated Group . | . . . . Highest-Rated Ally . | . . . . Total Orders . | . . . . Ally Attacks . | . . . . Total Damage . | . . . . Kills . | . . . . Allies Corrupted . | . . . . Allies Melted . | . . . . Intel | -11 -10 -10 -10 ------- Run | Yrd Mat Min Exi Robot Analysis Total 1 | . 1 . . Derelict Logs Recovered 1 | . . 1 . Drone Launches . | . . . . Drone Recoveries . | . . . . Exploration | -11 -10 -10 -10 ------------- Run | Yrd Mat Min Exi Turns Passed 1841 | 133 803 390 515 Spaces Moved 1117 | 88 582 233 214 Core 7 | 7 . . . Treads 245 | 3 . 28 214 Legs . | . . . . Wheels 865 | 78 582 205 . Hover . | . . . . Flight . | . . . . Fastest Speed 50 | 50 80 95 240 Average Speed 125 | 89 93 112 240 Slowest Speed 240 | 160 95 240 240 Overloaded Moves . | . . . . Propulsion Burnouts . | . . . . Robots Hopped . | . . . . Cave-ins Triggered 1 | . . 1 . Time Travels 1 | . . . 1 Exploration Rate (%) 45 | 6 80 43 53 Regions Visited 3 Branch Regions 2 Pre-discovered Areas 1 | . . . 1 Known Exits Taken . | . . . . Unknown Exits Taken 3 | 1 1 1 . Scrap Searched . | . . . . Spaces Dug . | . . . . Terrain Destroyed 13 | . 12 1 . Melee . | . . . . Projectile 2 | . 1 1 . AOE 11 | . 11 . . Terrain Rammed . | . . . . Walls Destroyed . | . . . . Machines Disabled . | . . . . Actions | -11 -10 -10 -10 --------- Run | Yrd Mat Min Exi Total 1460 | 123 794 327 216 Wait 190 | . 127 63 . Move 1114 | 87 581 232 214 Hop . | . . . . Pick Up 37 | 13 22 1 1 Fast Attach 10 | 3 4 2 1 Attach 9 | 4 . 5 . Detach 2 | 1 1 . . Swap 12 | 2 5 5 . Drop 24 | 2 20 2 . Fire 61 | 11 33 17 . Melee . | . . . . Ram 1 | . 1 . . Kick . | . . . . Crush . | . . . . Escape Stasis . | . . . . Rewire . | . . . . Trap . | . . . . Miscellaneous . | . . . . Route ------- -11/Scrapyard -10/Materials (discovered 4 exits: [*Mat x3] / [*Min]) -10/Mines (discovered 2 exits: [*Mat] / *Exi) -10/Exiles (discovered 2 exits: Min x2) History --------- Turn | Location | Event 11 | -11/Scrapyard | Discovered new exit (range 16) 134 | -11/Scrapyard | Entered Materials 331 | -10/Materials | Discovered new exit (range 4) 448 | -10/Materials | Build established: Mutant 485 | -10/Materials | Discovered new exit (range 3) 503 | -10/Materials | Discovered new exit (range 16) 576 | -10/Materials | Central database locked down 626 | -10/Materials | Discovered new exit (range 16) 937 | -10/Materials | Entered Mines 974 | -10/Mines | Met a Derelict bent on vengeance 984 | -10/Mines | Discovered new exit (range 15) 1200 | -10/Mines | Assembled infested the area 1249 | -10/Mines | Core integrity fell below 50% 1260 | -10/Mines | Crushed by falling debris 1260 | -10/Mines | Core integrity fell below 20% 1291 | -10/Mines | Lost 6 parts (1p4n1w) 1315 | -10/Mines | Deemed a non-threat by the Exiles lab entrance 1317 | -10/Mines | Discovered new exit (range 5) 1327 | -10/Mines | Entered Exiles 1328 | -10/Exiles | Identified exit to Mines 1387 | -10/Exiles | Met 8R-AWN 1426 | -10/Exiles | Met EX-HEX 1498 | -10/Exiles | Met EX-BIN 1534 | -10/Exiles | Aligned with FarCom system 1536 | -10/Exiles | Given EX-Vault access code 1615 | -10/Exiles | Opened EX-Vault 1675 | -10/Exiles | Found Chronowheel 1676 | -10/Exiles | Activated Chronowheel 1676 | -10/Exiles | Spacetime reconverged on an earlier point 1688 | -10/Exiles | Found Modified TNC 1736 | -10/Exiles | Warned to stay clear of 0b10 Research branches 1805 | -10/Exiles | Met EX-DEC 1822 | -10/Exiles | Learned location of Zion (-6) 1837 | -10/Exiles | Attacked by the Exiles 1842 | -10/Exiles | Destroyed by DAS Turret with DAS Cannon Last Messages --------------- proof of a Hollowlith. --BIN >>Record "MSG001904-02" More like hollow myth, haha! --DEC >>Record "MSG002145-01" An 0b10 database recorded a lone Knight exploring the Mines not too long ago. If anyone sees one of Warlord's units down here tell them to swing by our lab real quick. We need to have a talk with them about steering clear of our depth to avoid stirring up trouble. --HEX >>Record "MSG002532-01" If you spot any Unchained, don't even stop to analyze the situation, just run in the opposite direction. There haven't been any sightings for a while, but stay on your gyros. 01836_ System corrupted: FCS attempts to trigger Imp. Light Cannon. 01836_ System corrupted: Imp. Light Cannon misfires. 01836_ Components damaged. 01837_ EXILES: Hostile robot within lab perimeter. Defensive protocols time, folks! Map ----- +----------------------------------------------------+ | ??????????????????????????????######### ##"""" | | ??????????????????????????????#""""""## ###### | | ??????????????????????????????#"""" ## #????? | | ??????????????????????????????#""X" #????? | | ??????????????????????????????#" #????? | | ??????????????????????????????#" ## #????? | | ??????????????????????????????#""""""## #?#### | | ??????????????????????????????##"###### #?#""" | | ?????????????????????????????? "?????# #?#""" | | ?????????????????????????????"""??????# #?#""" | | ?????????????????????????????"""?????## ###"" | | ?????????????????????????????????????#" | | ?????????????????????????????????????#" | | ?????????????????????????????????????#" | | ?????????????????????????????????????#" | | ??????????????????????########???????#" | | ??????????????????????# """#???????#" | | ??????????????????????#"" """#???????## | | ??????????????????????#" #????????# | | ??????????????????????#"" #????????#" "X" | | ??????????????????????#"" "#????????#" """ | | ??????????????????????# % ""#????????#" """"" | | ??????????????????????#"" ""#???????##" ###### | | ??????????????????????###% ###??????##"" #????? | | ????????? ####?????### ###?######"" #????? | | ???????? """#####X#@ #"###""""""" ##???? | | ???????? % """""" " "" ##??? | | ????????# "" """ " #### | | ?????????# " " | | ?????????### | | ???????????### | | ?????????????## | | ??????????????## | | ???????????????##" | | ????????????????#""" """""" | | ????????????????#" ######""" | | ????????????????"" ""##????#####""" | | ????????????????""" """##?????????##""" | | ????????????????"" """##???????????#"""" | | ????????????????"" ""#????????????#"" | | ????????????????" #????????????#"""" | | ????????????????"" ????????????"" | | ????????????????? ??????????"" | | ?????????????????? ???????? | | ????????????????????? ?????????? | | ??????????????????????? ??????????? | | ????????????????????????????????????????? "" | | ??????????????????????????????????????????##""" " | | ????????????????????????????????????????????####"" | | ???????????????????????????????????????????????### | +----------------------------------------------------+ Best States ------------- Heat Dissipation 25 Energy Generation 10 Energy Capacity 250 Matter Stores 300 Matter Capacity 300 Sight Range 16 Terrain Scan Density 10 Armor Coverage 225 Evasion (%) 50 Recoil Reduction 1 Item Schematics ----------------- Huge Storage Unit | -10/Materials | Hacked Robot Schematics ------------------ None Fabricated ------------ Nothing Alien Tech Used ----------------- None Achievements -------------- None Challenges ------------ None Game ------ Seed AutogunMappingUnit Manual? 0 Play Time 00:20:02 Cumulative 62.1 hours Start 2024.11.29 @ 23:33:39 End 2024.11.30 @ 00:15:15 Sessions 1 Manual Loads 0 Difficulty Rogue Special Mode None Game No. 43 Rogue 43 Adventurer 0 Explorer 0 Win Type - Total 0 Types 0/0/0/0/0/0/0/0/0 Lore% 23 Gallery% 45 Achievement% 39 Wizard Run 0 Options --------- Layout 2 ASCII 0 Keyboard 0 Movement Numpad Keybinds 0 Fullscreen 0 Font 24/Proggy Map View 59x48 Zoom Use 0% Tactical HUD 1 Map Filters NONE Filters NONE Steam 1 RUN: 045acd5a-8101-4d1f-91e5-f72328fe0125